[Event "Early-Titled-Tuesday-Blitz-March-19-2024"]
[Site "Chess.com"]
[Date "2024.03.19"]
[Round "6"]
[White "MKlose11"]
[Black "HamedWafa4"]
[Result "0-1"]
[WhiteElo "2592"]
[BlackElo "2821"]
[TimeControl "180+1"]
[EndTime "9:06:30 PDT"]
[Termination "HamedWafa4 won by resignation"]

1. e4 {[%clk 0:02:51.2]} 1... e5 {[%clk 0:02:59]} 2. Nf3 {[%clk 0:02:39.4]} 2...
Nc6 {[%clk 0:02:58.8]} 3. d4 {[%clk 0:02:40.3]} 3... exd4 {[%clk 0:02:56.1]} 4.
Bc4 {[%clk 0:02:40.1]} 4... Bc5 {[%clk 0:02:54.2]} 5. Ng5 {[%clk 0:02:39.5]}
5... Nh6 {[%clk 0:02:53.5]} 6. Nxf7 {[%clk 0:02:39.8]} 6... Nxf7 {[%clk
0:02:54.4]} 7. Bxf7+ {[%clk 0:02:40.2]} 7... Kxf7 {[%clk 0:02:55.3]} 8. Qh5+
{[%clk 0:02:40.8]} 8... g6 {[%clk 0:02:55.9]} 9. Qxc5 {[%clk 0:02:41.7]} 9... d5
{[%clk 0:02:56]} 10. e5 {[%clk 0:02:41.9]} 10... Nxe5 {[%clk 0:02:43.2]} 11. O-O
{[%clk 0:02:34.6]} 11... Nc6 {[%clk 0:02:41.8]} 12. Nd2 {[%clk 0:02:28.2]} 12...
Qd6 {[%clk 0:02:30.5]} 13. Qxd6 {[%clk 0:02:25.8]} 13... cxd6 {[%clk 0:02:31.4]}
14. Nb3 {[%clk 0:02:07.9]} 14... Bf5 {[%clk 0:02:30.9]} 15. c3 {[%clk
0:02:08.3]} 15... dxc3 {[%clk 0:02:17.4]} 16. bxc3 {[%clk 0:02:09.2]} 16... Rhe8
{[%clk 0:02:11.7]} 17. Be3 {[%clk 0:02:06.8]} 17... Rac8 {[%clk 0:02:08.2]} 18.
Rfd1 {[%clk 0:02:03.1]} 18... Be4 {[%clk 0:02:03.6]} 19. Nd4 {[%clk 0:01:56.8]}
19... a6 {[%clk 0:01:50.1]} 20. h3 {[%clk 0:01:53.9]} 20... Na5 {[%clk 0:01:43]}
21. Rac1 {[%clk 0:01:52.2]} 21... Nc4 {[%clk 0:01:42.2]} 22. Bf4 {[%clk
0:01:51.2]} 22... Rc5 {[%clk 0:01:31.3]} 23. f3 {[%clk 0:01:23.1]} 23... Bf5
{[%clk 0:01:31.2]} 24. Re1 {[%clk 0:01:18.5]} 24... Rxe1+ {[%clk 0:01:24.1]} 25.
Rxe1 {[%clk 0:01:19.4]} 25... Bd7 {[%clk 0:01:08.6]} 26. Bg5 {[%clk 0:01:14]}
26... Ne5 {[%clk 0:00:33.2]} 27. f4 {[%clk 0:01:13.1]} 27... Nc6 {[%clk
0:00:33.5]} 28. Nxc6 {[%clk 0:01:10.4]} 28... Bxc6 {[%clk 0:00:34.4]} 29. Re7+
{[%clk 0:01:10.3]} 29... Kf8 {[%clk 0:00:34.3]} 30. Bf6 {[%clk 0:01:03]} 30...
d4 {[%clk 0:00:34.7]} 31. cxd4 {[%clk 0:00:44.5]} 31... Rf5 {[%clk 0:00:34.7]}
32. Bh4 {[%clk 0:00:26.1]} 32... g5 {[%clk 0:00:34.4]} 0-1

[Event "Early-Titled-Tuesday-Blitz-March-19-2024"]
[Site "Chess.com"]
[Date "2024.03.19"]
[Round "6"]
[White "Rutricks"]
[Black "the_chess_child"]
[Result "0-1"]
[WhiteElo "2717"]
[BlackElo "2874"]
[TimeControl "180+1"]
[EndTime "9:06:32 PDT"]
[Termination "the_chess_child won by resignation"]

1. Nc3 {[%clk 0:03:00.9]} 1... Nf6 {[%clk 0:02:52.9]} 2. d4 {[%clk 0:02:56.2]}
2... d5 {[%clk 0:02:51]} 3. Bf4 {[%clk 0:02:56.6]} 3... g6 {[%clk 0:02:49.2]} 4.
Qd2 {[%clk 0:02:54.1]} 4... Bg7 {[%clk 0:02:48.2]} 5. O-O-O {[%clk 0:02:54.6]}
5... O-O {[%clk 0:02:43.9]} 6. f3 {[%clk 0:02:54.8]} 6... c6 {[%clk 0:02:36.3]}
7. Bh6 {[%clk 0:02:50.6]} 7... b5 {[%clk 0:02:35.2]} 8. h4 {[%clk 0:02:49.7]}
8... Nbd7 {[%clk 0:02:18.2]} 9. h5 {[%clk 0:02:46.4]} 9... Nb6 {[%clk 0:02:18]}
10. e4 {[%clk 0:01:37.6]} 10... dxe4 {[%clk 0:02:01.4]} 11. Bxg7 {[%clk
0:01:22.2]} 11... Kxg7 {[%clk 0:02:00.1]} 12. hxg6 {[%clk 0:01:20.2]} 12... fxg6
{[%clk 0:01:59.7]} 13. Qh6+ {[%clk 0:01:19.9]} 13... Kg8 {[%clk 0:01:58.8]} 14.
Nxe4 {[%clk 0:01:15.1]} 14... Rf7 {[%clk 0:01:57.3]} 15. Bd3 {[%clk 0:00:42.3]}
15... Qf8 {[%clk 0:01:20.2]} 16. Qh4 {[%clk 0:00:42.2]} 16... Nxe4 {[%clk
0:01:11.3]} 17. fxe4 {[%clk 0:00:42.3]} 17... h5 {[%clk 0:01:08.8]} 18. Nf3
{[%clk 0:00:41.9]} 18... Bg4 {[%clk 0:01:08.3]} 19. Rdg1 {[%clk 0:00:33.2]}
19... Nc4 {[%clk 0:00:55.4]} 20. Bxc4 {[%clk 0:00:24.4]} 20... bxc4 {[%clk
0:00:56.3]} 21. Ne5 {[%clk 0:00:24.5]} 21... c3 {[%clk 0:00:37.3]} 22. Nxg4
{[%clk 0:00:15.8]} 22... cxb2+ {[%clk 0:00:34.1]} 23. Kb1 {[%clk 0:00:16.1]}
23... Rf4 {[%clk 0:00:34.2]} 24. Nh6+ {[%clk 0:00:07.5]} 24... Qxh6 {[%clk
0:00:31.8]} 25. Qxe7 {[%clk 0:00:07.7]} 25... Qg7 {[%clk 0:00:24.5]} 26. g4
{[%clk 0:00:06.3]} 26... Qxe7 {[%clk 0:00:24.2]} 0-1

[Event "Early-Titled-Tuesday-Blitz-March-19-2024"]
[Site "Chess.com"]
[Date "2024.03.19"]
[Round "6"]
[White "IsaqueGoncalvesSanto"]
[Black "Chessbard1972"]
[Result "0-1"]
[WhiteElo "1876"]
[BlackElo "2330"]
[TimeControl "180+1"]
[EndTime "9:06:33 PDT"]
[Termination "Chessbard1972 won by checkmate"]

1. d4 {[%clk 0:01:09.6]} 1... Nf6 {[%clk 0:02:34.5]} 2. c4 {[%clk 0:01:10.1]}
2... g6 {[%clk 0:02:31.2]} 3. Nc3 {[%clk 0:01:10.6]} 3... Bg7 {[%clk 0:02:30.9]}
4. e4 {[%clk 0:01:11.1]} 4... d6 {[%clk 0:02:31.6]} 5. f3 {[%clk 0:01:11.5]}
5... O-O {[%clk 0:02:32.2]} 6. Be3 {[%clk 0:01:12.1]} 6... Nbd7 {[%clk
0:02:31.6]} 7. Qd2 {[%clk 0:01:12.5]} 7... Re8 {[%clk 0:02:31.4]} 8. Bd3 {[%clk
0:01:12.6]} 8... c5 {[%clk 0:02:30.9]} 9. d5 {[%clk 0:01:11.4]} 9... Ne5 {[%clk
0:02:30.6]} 10. Nge2 {[%clk 0:01:08]} 10... e6 {[%clk 0:02:30.4]} 11. b3 {[%clk
0:01:07.6]} 11... exd5 {[%clk 0:02:29.3]} 12. cxd5 {[%clk 0:01:07.7]} 12... a6
{[%clk 0:02:29.3]} 13. Bc2 {[%clk 0:01:07.8]} 13... b5 {[%clk 0:02:29]} 14. O-O
{[%clk 0:01:07.8]} 14... b4 {[%clk 0:02:24.3]} 15. Na4 {[%clk 0:01:06.2]} 15...
a5 {[%clk 0:02:23]} 16. Rad1 {[%clk 0:01:05.6]} 16... Ba6 {[%clk 0:02:21.8]} 17.
Nb2 {[%clk 0:01:05.2]} 17... c4 {[%clk 0:02:14.4]} 18. bxc4 {[%clk 0:01:05]}
18... Nxc4 {[%clk 0:02:14.4]} 19. Nxc4 {[%clk 0:01:04.9]} 19... Bxc4 {[%clk
0:02:14.7]} 20. Bd3 {[%clk 0:01:05.2]} 20... Rc8 {[%clk 0:02:12.2]} 21. Bxc4
{[%clk 0:01:04.9]} 21... Rxc4 {[%clk 0:02:12.4]} 22. Nd4 {[%clk 0:01:05.2]}
22... Nd7 {[%clk 0:01:54.6]} 23. Nc6 {[%clk 0:01:04.9]} 23... Qa8 {[%clk
0:01:47.7]} 24. Bd4 {[%clk 0:01:04.6]} 24... Ne5 {[%clk 0:01:40.7]} 25. Rc1
{[%clk 0:01:00.2]} 25... Nxc6 {[%clk 0:01:27.5]} 26. Rxc4 {[%clk 0:00:59.7]}
26... Nxd4 {[%clk 0:01:26.8]} 27. Rxd4 {[%clk 0:00:59.8]} 27... Qa7 {[%clk
0:01:26.3]} 28. Rd1 {[%clk 0:00:55.6]} 28... Rc8 {[%clk 0:01:24]} 29. Kf1 {[%clk
0:00:55.8]} 29... Bxd4 {[%clk 0:01:21.8]} 30. Qxd4 {[%clk 0:00:56.1]} 30... Qxd4
{[%clk 0:01:21.5]} 31. Rxd4 {[%clk 0:00:55]} 31... Rc2 {[%clk 0:01:19.8]} 32. e5
{[%clk 0:00:40.2]} 32... Kf8 {[%clk 0:01:14]} 33. exd6 {[%clk 0:00:39]} 33...
Ke8 {[%clk 0:01:14.1]} 34. Re4+ {[%clk 0:00:37.5]} 34... Kd7 {[%clk 0:01:13.8]}
35. Re2 {[%clk 0:00:34]} 35... Rxe2 {[%clk 0:01:09.8]} 36. Kxe2 {[%clk
0:00:34.2]} 36... Kxd6 {[%clk 0:01:10.2]} 37. Kd3 {[%clk 0:00:33.9]} 37... Kxd5
{[%clk 0:01:10.5]} 38. f4 {[%clk 0:00:33.6]} 38... f5 {[%clk 0:01:09.6]} 39. g3
{[%clk 0:00:33.4]} 39... a4 {[%clk 0:01:08.1]} 40. h3 {[%clk 0:00:32.6]} 40...
b3 {[%clk 0:01:05.5]} 41. axb3 {[%clk 0:00:32.3]} 41... axb3 {[%clk 0:01:05.8]}
42. Kc3 {[%clk 0:00:32.6]} 42... Ke4 {[%clk 0:01:06.3]} 43. Kxb3 {[%clk
0:00:31.9]} 43... Kf3 {[%clk 0:01:07.2]} 44. g4 {[%clk 0:00:30.5]} 44... Kxf4
{[%clk 0:01:05.4]} 45. gxf5 {[%clk 0:00:30.1]} 45... gxf5 {[%clk 0:01:03.8]} 46.
Kc3 {[%clk 0:00:30.5]} 46... Ke3 {[%clk 0:01:04.2]} 47. Kc2 {[%clk 0:00:30.1]}
47... Ke2 {[%clk 0:01:02.6]} 48. Kc3 {[%clk 0:00:29.3]} 48... f4 {[%clk
0:01:02.8]} 49. Kd4 {[%clk 0:00:29.7]} 49... f3 {[%clk 0:01:03.3]} 50. Ke4
{[%clk 0:00:30.2]} 50... f2 {[%clk 0:01:03.9]} 51. Kf4 {[%clk 0:00:30.8]} 51...
f1=Q+ {[%clk 0:01:03.9]} 52. Kg3 {[%clk 0:00:31.4]} 52... Ke3 {[%clk 0:01:01.2]}
53. Kh2 {[%clk 0:00:30.5]} 53... Kf3 {[%clk 0:00:59.3]} 54. h4 {[%clk 0:00:30]}
54... Qg2# {[%clk 0:00:59.4]} 0-1

[Event "Early-Titled-Tuesday-Blitz-March-19-2024"]
[Site "Chess.com"]
[Date "2024.03.19"]
[Round "6"]
[White "Mops_2004"]
[Black "Chess_Gainz"]
[Result "1-0"]
[WhiteElo "2741"]
[BlackElo "2539"]
[TimeControl "180+1"]
[EndTime "9:06:37 PDT"]
[Termination "Mops_2004 won on time"]

1. e4 {[%clk 0:03:00.9]} 1... d6 {[%clk 0:02:34.3]} 2. d4 {[%clk 0:03:00.5]}
2... Nf6 {[%clk 0:02:33.2]} 3. f3 {[%clk 0:03:00.7]} 3... Nbd7 {[%clk
0:02:32.1]} 4. c4 {[%clk 0:02:59.5]} 4... e5 {[%clk 0:02:31.8]} 5. d5 {[%clk
0:02:58.5]} 5... Be7 {[%clk 0:02:31.9]} 6. Be3 {[%clk 0:02:52]} 6... O-O {[%clk
0:02:24.7]} 7. Bd3 {[%clk 0:02:51.6]} 7... c6 {[%clk 0:02:24.1]} 8. Ne2 {[%clk
0:02:50.7]} 8... a6 {[%clk 0:02:22.3]} 9. O-O {[%clk 0:02:48.8]} 9... cxd5
{[%clk 0:02:22.4]} 10. cxd5 {[%clk 0:02:48.7]} 10... b5 {[%clk 0:02:23]} 11.
Nbc3 {[%clk 0:02:34.3]} 11... Nc5 {[%clk 0:02:22.3]} 12. Bc2 {[%clk 0:02:32.6]}
12... b4 {[%clk 0:02:21.6]} 13. Na4 {[%clk 0:02:27.7]} 13... Nxa4 {[%clk
0:02:21.9]} 14. Bxa4 {[%clk 0:02:27.5]} 14... a5 {[%clk 0:02:22.6]} 15. Bc6
{[%clk 0:02:22]} 15... Ra6 {[%clk 0:02:02.9]} 16. a3 {[%clk 0:02:21.8]} 16...
Nd7 {[%clk 0:01:52.6]} 17. Qd3 {[%clk 0:02:16.7]} 17... Nc5 {[%clk 0:01:31.1]}
18. Qc4 {[%clk 0:02:10.6]} 18... bxa3 {[%clk 0:01:19.7]} 19. Rxa3 {[%clk
0:02:09.2]} 19... Rb6 {[%clk 0:01:06.4]} 20. Bxc5 {[%clk 0:02:01.7]} 20... dxc5
{[%clk 0:01:05.2]} 21. Qc2 {[%clk 0:01:38.3]} 21... Bb7 {[%clk 0:00:30.9]} 22.
Bxb7 {[%clk 0:01:34.4]} 22... Rxb7 {[%clk 0:00:31.1]} 23. Rfa1 {[%clk
0:01:26.7]} 23... Qb6 {[%clk 0:00:21.5]} 24. Rxa5 {[%clk 0:01:20.6]} 24... Qxb2
{[%clk 0:00:21.2]} 25. R5a2 {[%clk 0:01:14.4]} 25... Qb6 {[%clk 0:00:16.6]} 26.
g3 {[%clk 0:01:07]} 26... Bg5 {[%clk 0:00:14]} 27. Kg2 {[%clk 0:01:06]} 27...
Be3 {[%clk 0:00:14.3]} 28. Ra6 {[%clk 0:00:56.2]} 28... Qb5 {[%clk 0:00:11.9]}
29. R1a5 {[%clk 0:00:50]} 29... Qb2 {[%clk 0:00:08.9]} 30. Ra2 {[%clk
0:00:50.5]} 30... Qb5 {[%clk 0:00:08.6]} 31. Nc3 {[%clk 0:00:47.9]} 31... Qc4
{[%clk 0:00:06.2]} 32. d6 {[%clk 0:00:46.4]} 32... Bd4 {[%clk 0:00:06]} 33. Nd5
{[%clk 0:00:46.4]} 33... Qxc2+ {[%clk 0:00:03.6]} 34. Rxc2 {[%clk 0:00:47.3]}
34... Rd8 {[%clk 0:00:01.9]} 35. f4 {[%clk 0:00:37.5]} 1-0

[Event "Early-Titled-Tuesday-Blitz-March-19-2024"]
[Site "Chess.com"]
[Date "2024.03.19"]
[Round "6"]
[White "RebecaJimnz"]
[Black "HandKnit"]
[Result "0-1"]
[WhiteElo "2250"]
[BlackElo "2502"]
[TimeControl "180+1"]
[EndTime "9:06:41 PDT"]
[Termination "HandKnit won on time"]

1. e4 {[%clk 0:03:00.9]} 1... d6 {[%clk 0:02:59.6]} 2. d4 {[%clk 0:03:00.5]}
2... Nf6 {[%clk 0:03:00]} 3. Nc3 {[%clk 0:03:00]} 3... e5 {[%clk 0:03:00.3]} 4.
dxe5 {[%clk 0:02:57.8]} 4... dxe5 {[%clk 0:03:01.2]} 5. Qxd8+ {[%clk 0:02:57.5]}
5... Kxd8 {[%clk 0:03:02.1]} 6. Bc4 {[%clk 0:02:57.4]} 6... Be6 {[%clk 0:03:02]}
7. Bxe6 {[%clk 0:02:53.2]} 7... fxe6 {[%clk 0:03:02.9]} 8. Nf3 {[%clk
0:02:32.8]} 8... Bd6 {[%clk 0:02:58.4]} 9. Be3 {[%clk 0:02:14.8]} 9... Ke7
{[%clk 0:02:57.8]} 10. O-O-O {[%clk 0:02:12.3]} 10... a6 {[%clk 0:02:57.1]} 11.
h3 {[%clk 0:01:50.8]} 11... Nc6 {[%clk 0:02:49.7]} 12. Nd2 {[%clk 0:01:49.4]}
12... Raf8 {[%clk 0:02:39]} 13. f3 {[%clk 0:01:48.3]} 13... Nh5 {[%clk
0:02:36.9]} 14. Nc4 {[%clk 0:01:47.1]} 14... Nf4 {[%clk 0:02:28.2]} 15. Rd2
{[%clk 0:01:29]} 15... h6 {[%clk 0:02:13]} 16. Rhd1 {[%clk 0:01:28.4]} 16... Rd8
{[%clk 0:02:06.8]} 17. Na4 {[%clk 0:01:00.5]} 17... b5 {[%clk 0:01:48.2]} 18.
Nxd6 {[%clk 0:00:59.3]} 18... cxd6 {[%clk 0:01:44.5]} 19. Nb6 {[%clk 0:00:44.9]}
19... g5 {[%clk 0:01:35.6]} 20. a4 {[%clk 0:00:44.5]} 20... Rhf8 {[%clk
0:01:03.4]} 21. c3 {[%clk 0:00:37.4]} 21... Na5 {[%clk 0:01:00.1]} 22. Kc2
{[%clk 0:00:26.8]} 22... bxa4 {[%clk 0:00:49.4]} 23. b4 {[%clk 0:00:03.6]} 23...
axb3+ {[%clk 0:00:38.8]} 24. Kb2 {[%clk 0:00:03.9]} 24... d5 {[%clk 0:00:19.4]}
25. Ra1 {[%clk 0:00:01.4]} 25... Nc4+ {[%clk 0:00:16.6]} 26. Nxc4 {[%clk
0:00:01.7]} 26... dxc4 {[%clk 0:00:17.5]} 27. Rxa6 {[%clk 0:00:01.3]} 27... Nd3+
{[%clk 0:00:16.2]} 0-1

[Event "Early-Titled-Tuesday-Blitz-March-19-2024"]
[Site "Chess.com"]
[Date "2024.03.19"]
[Round "6"]
[White "chess94cu"]
[Black "Flaccidmoves"]
[Result "1-0"]
[WhiteElo "2631"]
[BlackElo "2440"]
[TimeControl "180+1"]
[EndTime "9:06:42 PDT"]
[Termination "chess94cu won by checkmate"]

1. d4 {[%clk 0:03:00.8]} 1... Nf6 {[%clk 0:02:55.2]} 2. c4 {[%clk 0:03:00.7]}
2... g6 {[%clk 0:02:55.8]} 3. g3 {[%clk 0:02:58.3]} 3... Bg7 {[%clk 0:02:54]} 4.
Bg2 {[%clk 0:02:58.5]} 4... O-O {[%clk 0:02:54.6]} 5. Nc3 {[%clk 0:02:58.1]}
5... c6 {[%clk 0:02:53.3]} 6. Nf3 {[%clk 0:02:55.3]} 6... d5 {[%clk 0:02:53.1]}
7. cxd5 {[%clk 0:02:54.5]} 7... cxd5 {[%clk 0:02:54]} 8. O-O {[%clk 0:02:53.4]}
8... Nc6 {[%clk 0:02:53.6]} 9. Ne5 {[%clk 0:02:53.9]} 9... Be6 {[%clk
0:02:45.5]} 10. Nxc6 {[%clk 0:02:42.1]} 10... bxc6 {[%clk 0:02:44.8]} 11. b3
{[%clk 0:02:39.7]} 11... Qd7 {[%clk 0:02:41.8]} 12. Ba3 {[%clk 0:02:34.6]} 12...
Rfe8 {[%clk 0:02:39.8]} 13. Rc1 {[%clk 0:02:33.3]} 13... Bh3 {[%clk 0:02:37.6]}
14. Na4 {[%clk 0:02:33.8]} 14... Bxg2 {[%clk 0:02:31.2]} 15. Kxg2 {[%clk
0:02:34.7]} 15... Ne4 {[%clk 0:02:22.9]} 16. h4 {[%clk 0:01:56.3]} 16... e5
{[%clk 0:02:11.9]} 17. Bb2 {[%clk 0:01:55.2]} 17... Bh6 {[%clk 0:01:52]} 18. e3
{[%clk 0:01:47.9]} 18... f6 {[%clk 0:01:30.5]} 19. h5 {[%clk 0:01:39.4]} 19...
Qf5 {[%clk 0:01:26.2]} 20. hxg6 {[%clk 0:01:36.8]} 20... hxg6 {[%clk 0:01:27.1]}
21. dxe5 {[%clk 0:01:28.9]} 21... fxe5 {[%clk 0:01:23.3]} 22. Rxc6 {[%clk
0:01:29.3]} 22... Rad8 {[%clk 0:01:24]} 23. Nc5 {[%clk 0:00:43.4]} 23... d4
{[%clk 0:01:19.7]} 24. exd4 {[%clk 0:00:27]} 24... exd4 {[%clk 0:01:14.6]} 25.
Nxe4 {[%clk 0:00:24.8]} 25... Qxe4+ {[%clk 0:01:03.4]} 26. Qf3 {[%clk
0:00:24.5]} 26... Qxf3+ {[%clk 0:00:49]} 27. Kxf3 {[%clk 0:00:23.9]} 27... Rf8+
{[%clk 0:00:32]} 28. Kg2 {[%clk 0:00:20.6]} 28... d3 {[%clk 0:00:20.2]} 29.
Rxg6+ {[%clk 0:00:20.2]} 29... Kh7 {[%clk 0:00:20.9]} 30. Ra6 {[%clk 0:00:20.7]}
30... Rf7 {[%clk 0:00:19.7]} 31. Rh1 {[%clk 0:00:19.8]} 31... d2 {[%clk
0:00:17.1]} 32. Raxh6+ {[%clk 0:00:18.7]} 32... Kg8 {[%clk 0:00:18]} 33. Rh8#
{[%clk 0:00:19.1]} 1-0

[Event "Early-Titled-Tuesday-Blitz-March-19-2024"]
[Site "Chess.com"]
[Date "2024.03.19"]
[Round "6"]
[White "The_Straightforward_Rook"]
[Black "Iskusnyh"]
[Result "0-1"]
[WhiteElo "2422"]
[BlackElo "2634"]
[TimeControl "180+1"]
[EndTime "9:06:42 PDT"]
[Termination "Iskusnyh won on time"]

1. e4 {[%clk 0:02:45.2]} 1... e6 {[%clk 0:02:57.6]} 2. Nf3 {[%clk 0:02:41.8]}
2... d5 {[%clk 0:02:55.6]} 3. Nc3 {[%clk 0:02:41.3]} 3... Nf6 {[%clk 0:02:54.3]}
4. e5 {[%clk 0:02:41.7]} 4... Nfd7 {[%clk 0:02:54.2]} 5. d4 {[%clk 0:02:42.2]}
5... c5 {[%clk 0:02:53.9]} 6. dxc5 {[%clk 0:02:42.6]} 6... Nc6 {[%clk
0:02:53.6]} 7. Bf4 {[%clk 0:02:42.7]} 7... Be7 {[%clk 0:02:51.4]} 8. Bd3 {[%clk
0:02:42.5]} 8... Nxc5 {[%clk 0:02:50.2]} 9. O-O {[%clk 0:02:39.5]} 9... g5
{[%clk 0:02:45.7]} 10. Be3 {[%clk 0:02:33.6]} 10... g4 {[%clk 0:02:36.8]} 11.
Nd4 {[%clk 0:02:24.8]} 11... Nxd3 {[%clk 0:02:31.7]} 12. Nxc6 {[%clk 0:02:20.9]}
12... Nxb2 {[%clk 0:02:18.1]} 13. Qc1 {[%clk 0:01:43.6]} 13... bxc6 {[%clk
0:02:16.4]} 14. Qxb2 {[%clk 0:01:43.6]} 14... Qc7 {[%clk 0:02:00.6]} 15. Ne2
{[%clk 0:01:43]} 15... Rb8 {[%clk 0:01:50.4]} 16. Qc3 {[%clk 0:01:39.7]} 16...
Ba6 {[%clk 0:01:45.3]} 17. Qd2 {[%clk 0:01:34.4]} 17... Bxe2 {[%clk 0:01:22.2]}
18. Qxe2 {[%clk 0:01:33.4]} 18... Qxe5 {[%clk 0:01:20]} 19. Qxg4 {[%clk
0:01:27.4]} 19... h5 {[%clk 0:01:17.3]} 20. Qa4 {[%clk 0:01:16.6]} 20... Qc7
{[%clk 0:01:13.7]} 21. f4 {[%clk 0:00:33]} 21... Rb4 {[%clk 0:01:07.4]} 22. Qxa7
{[%clk 0:00:30.4]} 22... Qxa7 {[%clk 0:01:03.9]} 23. Bxa7 {[%clk 0:00:31.3]}
23... Ra4 {[%clk 0:00:55.9]} 24. Be3 {[%clk 0:00:22.9]} 24... Kd7 {[%clk
0:00:54.6]} 25. Rfb1 {[%clk 0:00:22.1]} 25... Rha8 {[%clk 0:00:50.8]} 26. Rb7+
{[%clk 0:00:20.6]} 26... Ke8 {[%clk 0:00:50.1]} 27. a3 {[%clk 0:00:18.6]} 27...
Bxa3 {[%clk 0:00:46]} 28. Kf2 {[%clk 0:00:15.7]} 28... Bd6 {[%clk 0:00:42.3]}
29. Rxa4 {[%clk 0:00:12.1]} 29... Rxa4 {[%clk 0:00:42.6]} 30. g3 {[%clk
0:00:11.1]} 30... Rc4 {[%clk 0:00:40.5]} 31. Kf3 {[%clk 0:00:03.4]} 31... Rxc2
{[%clk 0:00:38.9]} 0-1

[Event "Early-Titled-Tuesday-Blitz-March-19-2024"]
[Site "Chess.com"]
[Date "2024.03.19"]
[Round "6"]
[White "Sattarov_Bobur"]
[Black "DonkyDonkyDonkey"]
[Result "0-1"]
[WhiteElo "2827"]
[BlackElo "2978"]
[TimeControl "180+1"]
[EndTime "9:06:45 PDT"]
[Termination "DonkyDonkyDonkey won by resignation"]

1. e4 {[%clk 0:02:57.6]} 1... c5 {[%clk 0:03:00]} 2. Nf3 {[%clk 0:02:55.7]} 2...
d6 {[%clk 0:03:00.5]} 3. d4 {[%clk 0:02:56.1]} 3... cxd4 {[%clk 0:03:01.4]} 4.
Nxd4 {[%clk 0:02:57]} 4... Nf6 {[%clk 0:03:02]} 5. f3 {[%clk 0:02:57.7]} 5... g6
{[%clk 0:03:00.2]} 6. Nc3 {[%clk 0:02:57.5]} 6... Bg7 {[%clk 0:02:59.8]} 7. Be3
{[%clk 0:02:58.2]} 7... O-O {[%clk 0:03:00.5]} 8. Qd2 {[%clk 0:02:58.7]} 8...
Nc6 {[%clk 0:03:01.2]} 9. g4 {[%clk 0:02:59.4]} 9... Bd7 {[%clk 0:02:55]} 10.
O-O-O {[%clk 0:02:59.1]} 10... Rc8 {[%clk 0:02:55]} 11. h4 {[%clk 0:02:59.7]}
11... h5 {[%clk 0:02:55.1]} 12. g5 {[%clk 0:02:58.9]} 12... Ne8 {[%clk
0:02:54.9]} 13. f4 {[%clk 0:02:59.3]} 13... a6 {[%clk 0:02:46.7]} 14. f5 {[%clk
0:02:55.7]} 14... Ne5 {[%clk 0:02:46.9]} 15. Kb1 {[%clk 0:02:47.3]} 15... Nc7
{[%clk 0:02:42.1]} 16. Bh3 {[%clk 0:02:45.5]} 16... b5 {[%clk 0:02:24.5]} 17.
Rdf1 {[%clk 0:02:38.8]} 17... b4 {[%clk 0:02:20.8]} 18. Nce2 {[%clk 0:02:14]}
18... Nb5 {[%clk 0:02:10.7]} 19. f6 {[%clk 0:02:02.2]} 19... Bh8 {[%clk
0:01:48.7]} 20. Bxd7 {[%clk 0:01:57.4]} 20... Qxd7 {[%clk 0:01:49.6]} 21. Nxb5
{[%clk 0:00:57.8]} 21... Qxb5 {[%clk 0:01:50.5]} 22. Nd4 {[%clk 0:00:54.4]}
22... Qd7 {[%clk 0:01:50.5]} 23. Qe2 {[%clk 0:00:51]} 23... Ng4 {[%clk
0:01:43.7]} 24. Rhg1 {[%clk 0:00:41.7]} 24... Rfe8 {[%clk 0:01:41.3]} 25. Nf5
{[%clk 0:00:13.8]} 25... gxf5 {[%clk 0:01:31]} 26. Rxf5 {[%clk 0:00:14.5]} 26...
exf6 {[%clk 0:00:59.9]} 27. Rxg4 {[%clk 0:00:14.1]} 27... hxg4 {[%clk 0:00:53]}
28. Qxg4 {[%clk 0:00:15]} 28... Rxe4 {[%clk 0:00:33.4]} 29. Qxe4 {[%clk
0:00:11.5]} 29... Re8 {[%clk 0:00:34]} 30. Qg4 {[%clk 0:00:03.6]} 30... Rxe3
{[%clk 0:00:32.2]} 31. gxf6+ {[%clk 0:00:01.5]} 31... Kf8 {[%clk 0:00:32.7]} 32.
Qg1 {[%clk 0:00:01.5]} 32... Qxf5 {[%clk 0:00:28]} 0-1

[Event "Early-Titled-Tuesday-Blitz-March-19-2024"]
[Site "Chess.com"]
[Date "2024.03.19"]
[Round "6"]
[White "kleber2007"]
[Black "GeorgiosSouleidis"]
[Result "1-0"]
[WhiteElo "2473"]
[BlackElo "2669"]
[TimeControl "180+1"]
[EndTime "9:06:46 PDT"]
[Termination "kleber2007 won by resignation"]

1. Nf3 {[%clk 0:03:00.9]} 1... Nf6 {[%clk 0:02:58.9]} 2. g3 {[%clk 0:03:00.6]}
2... g6 {[%clk 0:02:59.4]} 3. b3 {[%clk 0:03:01.1]} 3... Bg7 {[%clk 0:03:00.3]}
4. Bb2 {[%clk 0:03:01.7]} 4... O-O {[%clk 0:03:01.2]} 5. Bg2 {[%clk 0:03:01.8]}
5... d6 {[%clk 0:02:56.9]} 6. d4 {[%clk 0:03:02.3]} 6... e5 {[%clk 0:02:54.8]}
7. dxe5 {[%clk 0:03:02]} 7... dxe5 {[%clk 0:02:54.8]} 8. Qxd8 {[%clk 0:03:00.7]}
8... Rxd8 {[%clk 0:02:55.7]} 9. Nxe5 {[%clk 0:02:58.8]} 9... c6 {[%clk
0:02:32.2]} 10. Nd2 {[%clk 0:02:48.3]} 10... Na6 {[%clk 0:02:29.2]} 11. Nd3
{[%clk 0:02:44.4]} 11... Re8 {[%clk 0:02:21.2]} 12. Bf3 {[%clk 0:02:34.8]} 12...
Nd5 {[%clk 0:02:08.7]} 13. Bxg7 {[%clk 0:02:29.3]} 13... Kxg7 {[%clk 0:02:09.6]}
14. Bxd5 {[%clk 0:02:15]} 14... cxd5 {[%clk 0:02:10.5]} 15. e3 {[%clk
0:02:07.4]} 15... Bf5 {[%clk 0:02:07.1]} 16. O-O-O {[%clk 0:02:02.1]} 16... Rac8
{[%clk 0:02:07.3]} 17. Kb2 {[%clk 0:02:01.8]} 17... Bxd3 {[%clk 0:02:01]} 18.
cxd3 {[%clk 0:02:00.6]} 18... Nb4 {[%clk 0:02:01.6]} 19. Nf3 {[%clk 0:01:17.3]}
19... Rc2+ {[%clk 0:01:59.8]} 20. Ka3 {[%clk 0:01:17.3]} 20... a5 {[%clk
0:01:49.4]} 21. Rd2 {[%clk 0:01:15.7]} 21... Rec8 {[%clk 0:01:40.4]} 22. Rhd1
{[%clk 0:01:12.7]} 22... Nxa2 {[%clk 0:01:20.4]} 23. Nd4 {[%clk 0:01:07.5]}
23... Rxd2 {[%clk 0:01:20.3]} 24. Rxd2 {[%clk 0:01:08.4]} 24... Nc3 {[%clk
0:01:02.8]} 25. Rc2 {[%clk 0:00:59.2]} 25... b5 {[%clk 0:00:58.4]} 26. Kb2
{[%clk 0:00:55.6]} 26... b4 {[%clk 0:00:50.8]} 27. Kc1 {[%clk 0:00:33.4]} 27...
Kf6 {[%clk 0:00:47.2]} 28. Nb5 {[%clk 0:00:28.1]} 28... Ke5 {[%clk 0:00:25.9]}
29. Nxc3 {[%clk 0:00:27.9]} 29... bxc3 {[%clk 0:00:26.5]} 30. Ra2 {[%clk
0:00:27.7]} 30... d4 {[%clk 0:00:27.4]} 31. Rxa5+ {[%clk 0:00:26.9]} 31... Kf6
{[%clk 0:00:21.3]} 32. exd4 {[%clk 0:00:27]} 32... Rd8 {[%clk 0:00:21.9]} 33.
Kc2 {[%clk 0:00:26.9]} 33... Rxd4 {[%clk 0:00:21.8]} 34. Kxc3 {[%clk 0:00:27.4]}
34... Rd8 {[%clk 0:00:21.8]} 35. b4 {[%clk 0:00:27.5]} 35... Re8 {[%clk
0:00:20]} 36. b5 {[%clk 0:00:26.2]} 36... Re2 {[%clk 0:00:18.2]} 37. Ra4 {[%clk
0:00:25]} 37... Ke7 {[%clk 0:00:14.7]} 38. Re4+ {[%clk 0:00:24.9]} 1-0